Cogmind - Beta 14 @@@ ROGUE MODE // 2024.09.24 @ 17:50:52 Player: Daffa0360 Result: Self-destructed Performance ------------- Evolutions (2) 1000 Regions Visited (4) 800 Robots Destroyed (45) 225 Value Destroyed (1048) 1048 Prototype IDs (3) 60 Alien Tech Used (0) 0 Bonus (0) 0 TOTAL SCORE: 3133 Bonus ------- None Cogmind --------- Core Integrity 488/550 Matter 160/300 Energy 250/250 System Corruption 0% Temperature Cool (9) Movement Treading (170) Location -8/Materials Parts ------- > --- POWER (1) -------- Ion Engine > --- PROPULSION (2) --- Armored Treads Combat Airjet > --- UTILITY (6) ------ Medium Storage Unit Hacking Suite > --- WEAPON (2) ------- Improved Assault Rifle Mini Grenade Launcher > --- INVENTORY (10) --- Medium Storage Unit Signal Interpreter Improved Terrain Scanner Mining Laser Peak State ------------ > --- POWER ------------ Cooled Ion Engine > --- PROPULSION ------- Improved Treads Armored Wheel > --- UTILITY ---------- Medium Storage Unit Sensor Array Seismic Detector Hardened Light Armor Plating > --- WEAPON ----------- Improved Medium Laser Improved Assault Rifle > --- INVENTORY -------- Ion Engine Armored Wheel Medium Storage Unit Signal Interpreter Improved Terrain Scanner Hacking Suite Ion Cannon Light Assault Rifle Grenade Launcher Mining Laser [Rating: 19] Favorites ----------- Power Ion Engine Engine Ion Engine Propulsion Armored Wheel Treads Improved Treads Leg Aluminum Leg Wheel Armored Wheel Hover Unit Combat Airjet Utility Medium Storage Unit Device Seismic Detector Storage Medium Storage Unit Hackware Hacking Suite Protection Hardened Light Armor Plating Weapon Improved Medium Laser Energy Gun Improved Medium Laser Energy Cannon Ion Cannon Ballistic Gun Improved Assault Rifle Launcher Grenade Launcher Build | -11 -10 -9 -9 -8 ------- Run | Yrd Mat Mat Min Mat Slots Evolved 4 | . . 2 . 2 Power . | . . . . . Propulsion . | . . . . . Utility 4 | . . 2 . 2 Weapon . | . . . . . Parts Attached 34 | 3 1 19 4 7 Power 3 | . . 2 . 1 Engine 3 | . . 2 . 1 Core . | . . . . . Reactor . | . . . . . Propulsion 9 | 2 . 4 1 2 Treads 5 | 1 . 3 . 1 Leg . | . . . . . Wheel 3 | 1 . 1 1 . Hover 1 | . . . . 1 Flight . | . . . . . Utility 8 | 1 1 4 . 2 Device 4 | 1 . 2 . 1 Storage 1 | . 1 . . . Processor . | . . . . . Hackware 1 | . . . . 1 Protection 2 | . . 2 . . Artifact . | . . . . . Weapon 14 | . . 9 3 2 Energy Gun 1 | . . 1 . . Energy Cannon 3 | . . 2 1 . Ballistic Gun 5 | . . 3 1 1 Ballistic Cannon . | . . . . . Launcher 5 | . . 3 1 1 Special Weapon . | . . . . . Impact Weapon . | . . . . . Slashing Weapon . | . . . . . Piercing Weapon . | . . . . . Special Melee Weapon . | . . . . . Unidentified Prototypes 3 | . . 3 . . Parts Lost 11 | . . 1 9 1 Power 1 | . . . 1 . Propulsion 3 | . . . 3 . Utility 4 | . . 1 2 1 Weapon 3 | . . . 3 . Highest Loss Streak 8 | . . 1 8 1 To Critical Strikes . | . . . . . Average Slot Usage (%) 90 | . 100 98 49 45 Engine 10 | . 14 10 5 7 Treads 10 | . 14 11 4 6 Wheel 10 | . 14 11 6 . Device 18 | . 14 21 10 7 Storage 11 | . 14 11 11 9 Protection 7 | . . 10 . . Energy Gun 4 | . . 5 4 . Energy Cannon 3 | . . 4 . . Ballistic Gun 11 | . 28 10 1 5 Launcher 1 | . . 1 5 . Peak Build Rating 19 | 7 8 19 15 19 Average Rating 14 | 6 7 16 8 13 On Entrance 7 | 6 7 8 15 3 Naked Turns . | . . . . . Heaviest Build 31 | 14 19 31 26 18 Greatest Support 29 | 20 10 23 12 29 Greatest Overweight (x) 3 | 1 1 2 3 3 Average Overweight (x) 1 | . 1 1 2 . Largest Inventory Capacity 10 | 8 10 10 10 10 Average Capacity 9 | 8 9 10 10 10 Most Carried 10 | 7 10 10 10 10 Average Carried 9 | 5 8 9 9 6 Final Capacity 10 | 8 10 10 10 10 Final Carried 10 | 6 10 10 9 4 Class Distribution -------------------- 100% | Mutant Dominant Class ---------------- Mutant | -10/Materials Mutant | -9/Materials Mutant | -9/Mines Mutant | -8/Materials Resources | -11 -10 -9 -9 -8 ----------- Run | Yrd Mat Mat Min Mat Matter Collected 884 | 266 82 464 72 . Remotely . | . . . . . Salvage Created 1402 | 109 176 873 91 153 Parts 105 | 8 15 58 9 15 Haulers Intercepted 3 | . 1 2 . . Recyclers Shooed 4 | 1 1 1 1 . Parts Field Recycled . | . . . . . Retrieved Matter . | . . . . . Parts Self-Destructed . | . . . . . Prevented . | . . . . . Kills | -11 -10 -9 -9 -8 ------- Run | Yrd Mat Mat Min Mat Combat Hostiles Destroyed 33 | . . 22 8 3 Guns 13 | . . 11 1 1 Cannons 4 | . . 4 . . AOE 16 | . . 7 7 2 Classes Destroyed 12 | 2 2 5 3 . Worker 3 | . . 2 . 1 Builder 2 | . . . 1 1 Tunneler 3 | 2 . 1 . . Hauler 3 | . 1 2 . . Recycler 2 | 1 1 . . . Operator 1 | . . 1 . . Watcher 2 | . 2 . . . Swarmer 9 | . . 6 3 . Grunt 12 | . . 10 . 2 Sentry 7 | . . 6 . 1 Demolisher 1 | . . . 1 . Assembled 4 | . . . 4 . Best Kill Streak 5 | 3 2 5 5 4 Combat Bots Only 4 | . . 4 4 2 Max Kills in Single Turn 3 | 1 1 3 3 2 Gunslinging . | . . . . . Exploded 3 | . . 2 3 1 Melee . | . . . . . Uniques/NPCs Destroyed . | . . . . . Combat | -11 -10 -9 -9 -8 -------- Run | Yrd Mat Mat Min Mat Hostile Shots Fired 187 | . . 120 39 28 Missed 54 | . . 32 12 10 Damage Taken 2263 | . . 1171 769 323 Core 444 | . . 98 284 62 Absorbed by Shields . | . . . . . Regen/Repaired (Parts) 123 | . . 123 . . Core Remaining (%) 68 | 100 100 . 4 . Volleys Fired 123 | 10 17 68 13 15 Largest 2 | 2 2 2 1 2 Hottest 83 | 40 40 83 60 53 Shots Fired 201 | 20 34 116 13 18 Gun 154 | 20 34 82 3 15 Cannon 29 | . . 24 5 . Launcher 18 | . . 10 5 3 Special . | . . . . . Kinetic 129 | 20 34 58 2 15 Thermal 54 | . . 48 6 . Explosive 18 | . . 10 5 3 Electromagnetic . | . . . . . Robot Hit Streak 14 | 5 4 14 1 8 Robot Miss Streak 5 | 3 2 5 2 1 Penetration Max . | . . . . . Secondary Targets . | . . . . . Shots Hit Robots 122 | 11 19 76 4 12 Core Hits 83 | 5 9 43 14 12 Critical Kills . | . . . . . Critical Parts Destroyed . | . . . . . Critical Strikes 1 | . . 1 . . Burn 1 | . . 1 . . Melee Attacks . | . . . . . Impact . | . . . . . Slashing . | . . . . . Piercing . | . . . . . Sneak Attacks . | . . . . . Combat Hostiles . | . . . . . Follow-up Attacks . | . . . . . Damage Inflicted 3402 | 126 241 1910 566 559 Guns 1472 | 126 241 944 16 145 Cannons 388 | . . 342 46 . Explosions 1542 | . . 624 504 414 Melee . | . . . . . Ramming . | . . . . . Kinetic 1164 | 126 241 636 16 145 Thermal 696 | . . 650 46 . Explosive 1542 | . . 624 504 414 Electromagnetic . | . . . . . Impact . | . . . . . Slashing . | . . . . . Piercing . | . . . . . Highest Corruption . | . . . . . Average Corruption . | . . . . . Corruption Purged . | . . . . . Corruption Blocked . | . . . . . Overload Shots . | . . . . . Overflow Damage 24 | . . 4 9 11 Projectiles 9 | . . . 9 . Explosions 15 | . . 4 . 11 Melee . | . . . . . Knockbacks . | . . . . . Impact . | . . . . . Kinetic . | . . . . . Secondary . | . . . . . Self-Inflicted Damage 86 | . . . 41 45 Shots 2 | . . . 1 1 Rammed . | . . . . . Targets Rammed . | . . . . . Kicked . | . . . . . Crushed . | . . . . . Highest Temperature 345 | . . 345 48 9 Average Temperature 99 | . . 104 29 5 Received Heat Transfer 606 | . . 435 . 171 Effects 3 | . . 3 . . Interference 3 | . . 3 . . Siege Activations . | . . . . . Robots Corrupted . | . . . . . Combat Hostiles . | . . . . . Parts Fried . | . . . . . Impact Corruptions . | . . . . . Robots Melted . | . . . . . Combat Hostiles . | . . . . . Parts Melted 2 | . . 2 . . Heat Transferred 1369 | . . 1295 74 . Parts Sabotaged . | . . . . . Parts Stolen . | . . . . . Parts Stripped . | . . . . . Power Chain Reactions . | . . . . . Alert | -11 -10 -9 -9 -8 ------- Run | Yrd Mat Mat Min Mat Peak Influence 296 | 15 70 296 173 167 Initial 82 | . 9 29 82 40 Average 104 | 6 34 122 124 57 Maximum Alert Level 1 | . . 1 . . Low Security (%) 95 | 100 100 93 100 100 Level 1 4 | . . 6 . . Level 2 . | . . . . . Level 3 . | . . . . . Level 4 . | . . . . . Level 5 . | . . . . . High Security . | . . . . . Max Security . | . . . . . Squads Dispatched 3 | . . 2 . 1 Investigation 1 | . . . . 1 Extermination . | . . . . . Reinforcement 2 | . . 2 . . Assault . | . . . . . Garrison . | . . . . . Intercept . | . . . . . Searches Triggered . | . . . . . Construction Impeded . | . . . . . Haulers Reinforced . | . . . . . Active Scanning Responses . | . . . . . Cargo Convoy Interrupts . | . . . . . Stealth | -11 -10 -9 -9 -8 --------- Run | Yrd Mat Mat Min Mat Distress Signals 5 | . . 3 . 2 Communications Jammed . | . . . . . Distress Signals . | . . . . . Times Spotted 74 | . 3 41 21 9 Peak Tracking Total 14 | . 3 6 14 6 Tactical Retreats 2 | . . 1 1 . Traps | -11 -10 -9 -9 -8 ------- Run | Yrd Mat Mat Min Mat Traps Triggered 2 | . . 1 . 1 Indirectly . | . . . . . Trap Hack Attempts . | . . . . . Triggered . | . . . . . Disarmed . | . . . . . Reprogrammed . | . . . . . Reused . | . . . . . Traps Extracted . | . . . . . Installed . | . . . . . Triggered . | . . . . . Machines | -11 -10 -9 -9 -8 ---------- Run | Yrd Mat Mat Min Mat Machines Disabled 3 | . . 1 . 2 Max in Single Turn 1 | . . 1 . 1 Machines Repaired . | . . . . . Machines Dismantled . | . . . . . Machines Sabotaged . | . . . . . Overloaded Fab Kills . | . . . . . Hacking | -11 -10 -9 -9 -8 --------- Run | Yrd Mat Mat Min Mat Machines Accessed 7 | . 2 4 . 1 Terminals 6 | . 2 3 . 1 Fabricators . | . . . . . Repair Stations 1 | . . 1 . . Recycling Units . | . . . . . Scanalyzers . | . . . . . Garrison Access . | . . . . . Total Hacks 25 | . 5 17 . 3 Successful 20 | . 3 14 . 3 Failed 5 | . 2 3 . . Catastrophic . | . . . . . Database Lockouts . | . . . . . Manual 17 | . 2 13 . 2 Terminals 23 | . 5 15 . 3 Fabricators . | . . . . . Repair Stations 2 | . . 2 . . Recycling Units . | . . . . . Scanalyzers . | . . . . . Garrison Access . | . . . . . Terminal Hacks 6 | . 2 3 . 1 Robot Analysis 1 | . 1 . . . Alert Level 1 | . . 1 . . Unreport Threat 1 | . . 1 . . Locate Traps 2 | . 1 1 . . Recall Investigation 1 | . . . . 1 Fabricator Hacks . | . . . . . Repair Station Hacks 2 | . . 2 . . Scan Component 1 | . . 1 . . Repair 1 | . . 1 . . Recycling Unit Hacks . | . . . . . Scanalyzer . | . . . . . Garrison Access Hacks . | . . . . . Unauthorized Hacks 12 | . 1 9 . 2 Terminals 12 | . 1 9 . 2 Track 1 | . . 1 . . Assimilate 1 | . . 1 . . Botnet 5 | . 1 3 . 1 Operators 1 | . . 1 . . Skim 4 | . . 3 . 1 Fabricators . | . . . . . Repair Stations . | . . . . . Recycling Units . | . . . . . Scanalyzers . | . . . . . Garrison Access . | . . . . . Data Cores Recovered 1 | . . 1 . . Used . | . . . . . Hacking Detections 7 | . 2 4 . 1 Full Trace Events . | . . . . . Feedback Events . | . . . . . Feedback Blocked . | . . . . . Robot Schematics Acquired . | . . . . . Robots Built . | . . . . . Authchips . | . . . . . Time . | . . . . . Total Robot Build Rating . | . . . . . Part Schematics Acquired . | . . . . . Parts Built . | . . . . . Authchips . | . . . . . Time . | . . . . . Total Part Build Rating . | . . . . . Parts Repaired 1 | . . 1 . . Time 32 | . . 32 . . Parts Recycled . | . . . . . Recycled Matter . | . . . . . Retrieved Matter . | . . . . . Retrieved Components . | . . . . . Parts Scanalyzed . | . . . . . Part Schematics Acquired . | . . . . . Parts Damaged . | . . . . . Bothacking | -11 -10 -9 -9 -8 ------------ Run | Yrd Mat Mat Min Mat Used RIF Installer . | . . . . . Robots Hacked . | . . . . . Non-combat . | . . . . . Combat . | . . . . . Robot Hacks Applied . | . . . . . Relay Couplers Released . | . . . . . Fabnet Peak Effective % . | . . . . . Robots Rewired . | . . . . . Allies Hacked . | . . . . . Hacks Repelled . | . . . . . Allies | -11 -10 -9 -9 -8 -------- Run | Yrd Mat Mat Min Mat Total Allies 1 | . . . 1 . Largest Group 1 | . . . 1 . Highest-Rated Group 16 | . . . 16 . Highest-Rated Ally 16 | . . . 16 . Total Orders . | . . . . . Ally Attacks 2 | . . . 2 . Total Damage 16 | . . . 16 . Kills . | . . . . . Allies Corrupted . | . . . . . Allies Melted . | . . . . . Intel | -11 -10 -9 -9 -8 ------- Run | Yrd Mat Mat Min Mat Robot Analysis Total 1 | . 1 . . . Derelict Logs Recovered . | . . . . . Drone Launches . | . . . . . Drone Recoveries . | . . . . . Exploration | -11 -10 -9 -9 -8 ------------- Run | Yrd Mat Mat Min Mat Turns Passed 2324 | 81 243 1612 225 163 Spaces Moved 1154 | 31 195 697 137 94 Core 52 | . . . 40 12 Treads 302 | . . 277 . 25 Legs 25 | 25 . . . . Wheels 718 | 6 195 420 97 . Hover 57 | . . . . 57 Flight . | . . . . . Fastest Speed 80 | 95 95 95 90 80 Average Speed 146 | 115 95 166 139 126 Slowest Speed 240 | 120 95 240 200 200 Overloaded Moves . | . . . . . Propulsion Burnouts . | . . . . . Robots Hopped . | . . . . . Cave-ins Triggered . | . . . . . Exploration Rate (%) 27 | 4 36 55 27 14 Regions Visited 4 Branch Regions 1 Pre-discovered Areas . | . . . . . Known Exits Taken . | . . . . . Unknown Exits Taken 4 | 1 1 1 1 . Scrap Searched . | . . . . . Spaces Dug . | . . . . . Terrain Destroyed 96 | . . 59 29 8 Melee . | . . . . . Projectile 6 | . . 3 3 . AOE 90 | . . 56 26 8 Terrain Rammed . | . . . . . Walls Destroyed . | . . . . . Machines Disabled . | . . . . . Actions | -11 -10 -9 -9 -8 --------- Run | Yrd Mat Mat Min Mat Total 1595 | 59 222 1033 160 121 Wait 245 | 11 2 228 3 1 Move 1150 | 30 194 696 136 94 Hop . | . . . . . Pick Up 23 | 3 6 9 2 3 Fast Attach 4 | . . 4 . . Attach 17 | 3 . 3 4 7 Detach 1 | . . . 1 . Swap 13 | . 1 12 . . Drop 19 | 2 2 13 1 1 Fire 123 | 10 17 68 13 15 Melee . | . . . . . Ram . | . . . . . Kick . | . . . . . Crush . | . . . . . Escape Stasis . | . . . . . Rewire . | . . . . . Trap . | . . . . . Miscellaneous . | . . . . . Route ------- -11/Scrapyard -10/Materials -9/Materials -9/Mines -8/Materials History --------- Turn | Location | Event 1 | -11/Scrapyard | Discovered new exit (range 1) 82 | -11/Scrapyard | Entered Materials 295 | -10/Materials | Discovered new exit (range 16) 314 | -10/Materials | Build established: Mutant 325 | -10/Materials | Entered another Materials area 325 | -9/Materials | Evolved 2 slots: Utility x2 960 | -9/Materials | Repaired Hrd. Light Armor Plating 1909 | -9/Materials | Discovered new exit (range 14) 1937 | -9/Materials | Entered Mines 1962 | -9/Mines | Discovered new exit (range 14) 2012 | -9/Mines | Assembled infested the area 2032 | -9/Mines | Assisted by bots powering up and referring to "LRC-V3" 2044 | -9/Mines | Core integrity fell below 50% 2095 | -9/Mines | Lost 8 parts (1p3n2u2w) 2098 | -9/Mines | Core integrity fell below 20% 2162 | -9/Mines | Entered Materials 2162 | -8/Materials | Evolved 2 slots: Utility x2 2325 | -8/Materials | Self-destructed Last Messages --------------- 02305_ Critical hit (Burn: +37). 02306_ U-05 Engineer lays Concrete. 02307_ K-01 Serf collects debris. 02308_ R-06 Scavenger collects Lgt. Nuclear Core. 02309_ U-05 Engineer lays Concrete. 02310_ Adv. Weight Redist. System destroyed. 02311_ K-01 Serf collects debris. 02312_ R-06 Scavenger collects Particle Gun. 02315_ K-01 Serf collects debris. 02316_ R-06 Scavenger collects Imp. Heat Sink. 02316_ Terminal disabled. 02316_ U-05 Engineer destroyed. 02316_ Destroyed Structural Scanner. 02318_ Atomic Centrifuge disabled. 02319_ Destroyed Imp. Heat Sink. 02319_ Y-45 Defender destroyed. 02319_ Matter Pump disabled. 02319_ K-01 Serf destroyed. 02322_ G-47 Trooper destroyed. Map ----- +----------------------------------------------------+ | ?????????????????????????????????????????????????? | | ?????????????????????????????????????????????????? | | ??? ?????????????????????????????????????????????? | | ??? ????????????????????????????????????????????? | | ???? ????????????????????????????????????????????? | | ???? #####???????????????????????????????????????? | | ???? #???????????????????????????????????????? | | ????? #???????????????????????????????????????? | | ????? #???????????????????????????????????????? | | ###### ##########??????????????????????????????? | | # # #??????????????????????????????? | | """ # #"" #??????????????????????????????? | | """ # #"Y #??????????????????????????????? | | """ # #"" #??????????????????????????????? | | """ + # #??????????????????????????????? | | """ # # """ #??????????????????????????????? | | # + """ ]#??????????????????????????????? | | """ # # """ #?????????????? #??????????????? | | """ # # #????????????? #??????????????? | | """ # ####################### ####???????????? | | """ # r % ##??????????? | | ??"" # = ??????? | | ??? # =% =%[ ?????? | | ???### ############### !g g #??????? | | ?????# #????????# =%[ #??????? | | ###### #????????# "" @ =% != Y ???????? | | # #????????# """ ! ???????? | | " # #????????# S" "" ???????? | | " # ########## ####????????? | | " # # # + #???????????? | | + + # # #???????????? | | " # # # "" # ! #???????????? | | " # # # """?##+######## #???????????? | | " # #? # """?????????????##???????????? | | #####? #?? ??????????????????????????? | | ######?????? #??????????????????????????????? | | ???????????? #??????????????????????????????? | | ????????????? #??????????????????????????????? | | ?????????????######??????????????????????????????? | | ?????????????????????????????????????????????????? | | ?????????????????????????????????????????????????? | | ?????????????????????????????????????????????????? | | | | | | | | | | | | | | | | | +----------------------------------------------------+ Best States ------------- Heat Dissipation 31 Energy Generation 14 Energy Capacity 280 Matter Stores 300 Matter Capacity 300 Sight Range 16 Robot Scan Range 14 Terrain Scan Density 10 Additional Mass Support 9 Armor Coverage 150 Evasion (%) 55 Recoil Reduction 1 Offensive Hacking 10 Item Schematics ----------------- None Robot Schematics ------------------ None Fabricated ------------ Nothing Alien Tech Used ----------------- None Achievements -------------- None Challenges ------------ None Game ------ Seed EfficiencyPotentialCanceller Manual? 0 Play Time 00:26:08 Cumulative 106.4 hours Start 2024.09.22 @ 21:29:38 End 2024.09.24 @ 17:50:52 Sessions 6 Manual Loads 0 Difficulty Rogue Special Mode None Game No. 163 Rogue 159 Adventurer 4 Explorer 0 Win Type - Total 0 Types 0/0/0/0/0/0/0/0/0 Lore% 49 Gallery% 57 Achievement% 42 Wizard Run 0 Options --------- Layout 2 ASCII 0 Keyboard 0 Movement Mouse Keybinds 0 Fullscreen 2 Font 24/Smallcaps Map View 50x44 Zoom Use 0% Tactical HUD 1 Map Filters NONE Filters NONE Steam 1 RUN: e3f783de-343c-48be-acc0-0b2aca3e41f4